bitfinex/quotes_SOLUSD_20240726
["timestamp","ask_amount","ask_price","bid_price","bid_amount"]
[1721990773305,13.42,179.02,178.99,19.6637607]
[1721990773819,13.42,179.02,178.99,14.0771607]
[1721990773992,13.42,179.01,178.99,0.1106607]
[1721990774395,45.0,179.0,178.99,0.1106607]
[1721990774800,58.42,179.0,178.99,0.1106607]
[1721990777697,64.0065,179.0,178.99,0.1106607]
[1721990780410,64.0065,179.0,178.88,5.59]
[1721990780411,5.5888,178.93,178.88,5.59]
[1721990780620,13.42,178.91,178.89,5.5899]
[1721990782418,13.42,178.92,178.89,5.5899]
[1721990782591,13.9677,178.99,178.9,13.9736]
[1721990782797,45.0,178.98,178.93,5.5887]
[1721990783107,13.42,178.97,178.92,13.9722]
[1721990783295,13.42,178.96,178.94,5.5883]
[1721990784409,13.42,178.97,178.95,5.5881]
[1721990784844,13.42,178.98,178.95,5.5881]
[1721990785645,13.42,178.98,178.94,19.5589]
[1721990785799,19.0072,178.98,178.94,19.5589]
[1721990787706,13.42,178.98,178.94,19.5589]
[1721990788427,19.0072,178.98,178.94,19.5589]
[1721990789020,19.0072,178.98,178.94,13.9706]
[1721990789212,19.0076,178.97,178.93,20.9904]
[1721990789812,64.0078,178.96,178.93,15.4017]
[1721990790009,64.0078,178.96,178.91,27.3931]
[1721990790214,13.42,178.96,178.92,5.589]
[1721990790926,13.42,178.95,178.92,5.589]
[1721990793332,58.42,178.94,178.91,13.9731]
[1721990794116,13.42,178.93,178.9,21.6682]
[1721990794316,13.42,178.92,178.89,5.59]
[1721990794712,13.42,178.9,178.88,13.9754]
[1721990795221,13.42,178.9,178.87,5.5904]
[1721990795422,13.42,178.89,178.87,5.5904]
[1721990795842,13.42,178.89,178.86,22.073]
[1721990797614,13.42,178.89,178.87,5.5906]
[1721990798235,13.42,178.89,178.86,22.073]
[1721990798736,13.42,178.9,178.86,22.073]
[1721990800433,5.5894,178.91,178.87,5.5906]
[1721990800630,13.42,178.9,178.86,22.0729]
[1721990800823,19.0097,178.9,178.86,22.0729]
[1721990802019,13.42,178.9,178.86,22.0729]
[1721990802420,19.0098,178.9,178.86,22.0729]
[1721990803743,19.0098,178.9,178.86,16.4821]
[1721990804252,5.5893,178.92,178.87,5.5906]
[1721990804538,13.42,178.9,178.87,5.5906]
[1721990805517,19.0094,178.91,178.87,5.5906]
[1721990805717,19.0094,178.91,178.86,22.073]
[1721990806238,5.5897,178.9,178.86,16.4821]
[1721990806419,19.0097,178.9,178.86,16.4821]
[1721990806825,5.59,178.89,178.86,16.4821]
[1721990809123,5.5903,178.88,178.85,13.9778]
[1721990809327,5.5903,178.88,178.81,34.9493607]
[1721990809328,5.5903,178.88,178.83,5.5918]
[1721990809525,19.0103,178.88,178.83,5.5918]
[1721990809952,19.0103,178.88,178.84,5.5915]
[1721990810131,5.5906,178.87,178.83,5.5918]
[1721990810455,13.42,178.88,178.86,5.5909]
[1721990810839,8.7650231,178.96,178.87,13.9761]
[1721990811146,13.42,178.91,178.87,13.9761]
[1721990811349,13.42,178.91,178.86,19.0108]
[1721990811553,19.0099,178.9,178.85,5.5912]
[1721990812031,5.5901,178.89,178.85,5.5912]
[1721990812435,5.5901,178.89,178.85,6.70927637]
[1721990812630,13.42,178.9,178.86,5.5908]
[1721990812837,19.0097,178.9,178.86,5.5908]
[1721990813223,5.5906,178.88,178.84,13.9786]
[1721990813633,5.5906,178.87,178.83,5.5918]
[1721990814246,67.6531,178.92,178.81,36.3369607]
[1721990814443,5.5907,178.87,178.81,49.7569607]
[1721990814838,5.5904,178.88,178.83,5.5918]
[1721990815031,5.5904,178.88,178.81,49.7569607]
[1721990815032,5.5904,178.88,178.84,5.5914]
[1721990816345,67.6531,178.92,178.84,5.5914]
[1721990816346,5.59,178.89,178.84,5.5914]
[1721990817926,5.5904,178.88,178.84,5.5914]
[1721990818234,5.5904,178.88,178.83,19.5711]
[1721990818444,5.5907,178.87,178.83,19.5711]
[1721990821532,73.48854907,178.92,178.83,19.5711]
[1721990821533,5.5904,178.88,178.83,19.5711]
[1721990821732,13.9706,178.95,178.87,5.5903]
[1721990821935,19.0097,178.9,178.85,13.9778]
[1721990822152,5.5897,178.9,178.85,13.9778]
[1721990822361,5.5893,178.92,178.86,5.5908]
[1721990822733,13.42,178.91,178.87,5.5906]
[1721990822932,5.5887,178.93,178.88,5.5902]
[1721990823340,13.42,178.91,178.87,5.5906]
[1721990824956,13.42,178.91,178.88,5.5903]
[1721990825132,13.42,178.91,178.86,13.42]
[1721990825336,19.0091,178.92,178.88,5.5903]
[1721990825539,5.5887,178.94,178.89,5.5899]
[1721990825738,13.42,178.93,178.89,5.5899]
[1721990825958,19.0088,178.93,178.88,5.5902]
[1721990826769,5.5891,178.92,178.88,5.5902]
[1721990827139,19.0091,178.92,178.87,13.9758]
[1721990827339,19.0091,178.92,178.87,19.5664]
[1721990828969,13.42,178.91,178.87,19.5664]
[1721990829839,5.5891,178.92,178.87,19.5664]
[1721990830037,13.42,178.91,178.87,19.5664]
[1721990832064,5.5891,178.92,178.87,19.5664]
[1721990832371,13.42,178.91,178.87,19.5664]
[1721990832868,13.42,178.9,178.87,19.5664]
[1721990833072,13.42,178.9,178.87,13.9758]
[1721990833655,5.5894,178.91,178.87,13.9758]
[1721990833861,19.0094,178.91,178.87,19.5664]
[1721990834036,5.589,178.93,178.87,19.5664]
[1721990834438,13.42,178.91,178.88,5.5903]
[1721990835070,8.7650231,178.96,178.87,13.9758]
[1721990835244,13.42,178.91,178.87,13.9758]
[1721990835649,8.7650231,178.96,178.9,5.5896]
[1721990835650,5.5883,178.95,178.9,5.5896]
[1721990835847,13.42,178.94,178.91,1.11766106]
[1721990836142,13.42,178.94,178.91,6.70696106]
[1721990836352,13.42,178.94,178.89,13.9743]
[1721990836353,13.42,178.92,178.89,13.9743]
[1721990837151,19.0091,178.92,178.88,16.071]
[1721990837550,5.5891,178.92,178.88,16.071]
[1721990837737,13.42,178.91,178.88,16.071]
[1721990837943,13.42,178.89,178.83,16.071]
[1721990838144,6.3774,178.98,178.83,21.6626]
[1721990838145,5.5906,178.88,178.83,21.6626]
[1721990838356,13.42,178.87,178.84,5.5915]
[1721990838539,13.42,178.87,178.83,16.071]
[1721990838744,13.42,178.87,178.83,21.6628]
[1721990838944,13.42,178.86,178.83,21.6628]
[1721990839361,13.42,178.86,178.83,5.5918]
[1721990840648,13.42,178.86,178.84,5.5915]
[1721990840847,13.9725,178.93,178.84,5.5915]
[1721990840848,5.59,178.89,178.84,5.5915]
[1721990841166,13.42,178.87,178.85,5.5912]
[1721990841965,13.42,178.88,178.86,5.5909]
[1721990843449,5.5894,178.91,178.86,5.5909]
[1721990843650,13.42,178.9,178.86,5.5909]
[1721990844948,13.42,178.89,178.86,5.5909]
[1721990845868,13.42,178.89,178.84,13.9789]
[1721990846048,13.42,178.89,178.86,5.5909]
[1721990847364,5.5894,178.91,178.87,5.5905]
[1721990847365,13.42,178.91,178.87,5.5905]
[1721990848361,13.42,178.9,178.86,5.5909]
[1721990850082,13.42,178.9,178.87,5.5906]
[1721990850281,13.42,178.9,178.88,5.5902]
[1721990851578,5.5888,178.93,178.88,5.5902]
[1721990851579,13.42,178.91,178.88,5.5902]
[1721990851970,13.42,178.92,178.89,5.5899]
[1721990854269,13.42,178.92,178.88,5.5903]
[1721990857388,13.42,178.92,178.87,13.9765]
[1721990857389,13.42,178.92,178.89,5.5899]
[1721990858371,5.5888,178.93,178.88,5.5903]
[1721990858698,19.0088,178.93,178.89,5.5899]
[1721990859262,13.42,178.93,178.89,5.5899]
[1721990860160,13.42,178.94,178.9,5.5895]
[1721990860356,19.0084,178.94,178.9,5.5895]
[1721990861505,6.3774,178.98,178.89,13.9746]
[1721990861675,13.42,178.94,178.89,27.3946]
[1721990861999,13.42,178.94,178.91,5.5893]
[1721990862703,5.5878,178.96,178.91,5.5893]
[1721990862861,13.42,178.96,178.92,5.589]
[1721990864078,5.5871,178.99,178.92,13.42]
[1721990864393,13.42,178.97,178.91,27.3927]
[1721990864897,19.0069,178.99,178.93,27.3912]
[1721990865467,13.42,178.98,178.93,27.3912]
[1721990865798,13.42,178.98,178.93,13.9712]
[1721990866296,13.42,178.98,178.95,5.5881]
[1721990866505,13.42,178.98,178.93,13.9712]
[1721990866697,13.42,178.98,178.94,5.5883]
[1721990867584,5.5865,179.01,178.96,5.5878]
[1721990867789,13.42,178.99,178.96,5.5878]
[1721990868171,13.42,178.99,178.95,5.588]
[1721990868594,19.0069,178.99,178.95,5.588]
[1721990869095,5.5865,179.01,178.97,5.5874]
[1721990869279,13.42,179.0,178.95,19.5577]
[1721990869474,13.42,179.0,178.96,5.5875]
[1721990870483,19.0066,179.0,178.96,5.5875]
[1721990871072,19.0066,179.0,178.95,34.09529711]
[1721990871273,19.0066,179.0,178.96,5.5878]
[1721990872702,13.42,179.0,178.97,5.5874]
[1721990872894,13.42,179.0,178.98,5.5871]
[1721990873194,13.42,179.01,178.98,5.5871]
[1721990873401,13.42,179.01,178.97,5.5874]
[1721990873600,5.586,179.02,178.97,5.5874]
[1721990873812,13.42,179.01,178.97,5.5874]
[1721990875407,13.42,179.01,178.98,5.5871]
[1721990878095,13.42,179.02,178.98,5.5871]
[1721990878520,19.006,179.02,178.98,5.5871]
[1721990878808,5.5854,179.04,179.0,5.5864]
[1721990879010,13.42,179.04,179.0,5.5864]
[1721990879309,19.005,179.05,179.0,5.5863]
[1721990879786,19.0053,179.04,179.0,5.5863]
[1721990880497,13.42,179.04,179.0,5.5863]
[1721990880809,19.005,179.05,179.0,5.5863]
[1721990881106,5.5855,179.04,178.99,32.9733]
[1721990881401,13.42,179.04,179.0,5.5865]
[1721990881701,19.0051,179.05,179.0,5.5865]
[1721990881892,13.42,179.02,178.99,13.9667]
[1721990882287,13.42,179.03,178.99,19.5533]
[1721990882708,13.42,179.04,179.0,5.5863]
[1721990883010,13.42,179.04,179.01,5.5862]
[1721990884511,5.585,179.05,179.01,5.5862]
[1721990884512,19.005,179.05,179.01,5.5862]
[1721990885020,13.42,179.04,179.0,5.5864]
[1721990885511,19.005,179.05,179.01,5.5862]
[1721990886099,13.42,179.05,179.01,5.5862]
[1721990889008,13.42,179.02,178.99,13.9667]
[1721990889310,28.55417944,179.09,178.96,5.5877]
[1721990889311,13.42,179.0,178.96,5.5877]
[1721990889618,13.42,179.0,178.97,5.5874]
[1721990890493,13.42,179.01,178.97,5.5874]
[1721990891620,5.83672933,179.06,178.97,5.5874]
[1721990891799,13.9613,179.07,178.93,49.5925]
[1721990891800,5.5854,179.04,179.0,5.5863]
[1721990892001,13.42,179.05,179.01,5.5861]
[1721990892300,13.42,179.05,178.99,27.3867]
[1721990892500,5.5844,179.07,179.02,13.9645]
[1721990892719,19.0047,179.06,179.02,19.5504]
[1721990893409,13.42,179.03,178.95,13.9702]
[1721990893607,13.42,178.98,178.92,13.42]
[1721990893811,13.42,178.96,178.91,13.9731]
[1721990894116,13.42,178.96,178.92,5.589]
[1721990894619,13.42,178.97,178.93,5.5887]
[1721990896719,5.5869,178.99,178.94,5.5883]
[1721990896919,13.42,178.99,178.95,5.5878]
[1721990897124,13.42,178.97,178.94,13.971]
[1721990897298,13.42,178.96,178.94,13.971]
[1721990897500,13.42,178.96,178.93,5.5887]
[1721990897714,5.5872,178.98,178.93,5.5887]
[1721990897927,13.42,178.96,178.93,5.5887]
[1721990899304,13.42,178.97,178.94,5.5884]
[1721990899521,13.42,178.96,178.94,5.5884]
[1721990899726,13.42,178.96,178.93,5.5887]
[1721990900719,13.42,178.96,178.92,5.5888]
[1721990901107,13.42,178.96,178.93,5.5886]
[1721990901306,13.42,178.96,178.94,5.5884]
[1721990901725,13.42,178.97,178.94,5.5884]
[1721990903134,13.42,178.96,178.93,19.5602]
[1721990903520,13.42,178.96,178.93,13.9715]
[1721990903942,5.5873,178.98,178.93,13.9715]
[1721990905131,5.5869,178.99,178.93,13.9715]
[1721990906124,5.5869,178.99,178.95,5.588]
[1721990906529,5.5869,178.99,178.94,5.5883]
[1721990906729,5.5873,178.98,178.94,5.5883]
[1721990906926,13.42,178.96,178.93,19.56]
[1721990908029,13.42,178.95,178.93,19.56]
[1721990908632,13.42,178.96,178.93,19.56]
[1721990909425,13.42,178.96,178.94,5.5884]
[1721990909819,13.42,178.96,178.93,19.5602]
[1721990910527,13.42,178.96,178.94,5.5884]
[1721990912520,13.42,178.97,178.94,5.5884]
[1721990913931,13.42,178.97,178.95,5.588]
[1721990914148,5.83849119,179.03,178.96,5.5878]
[1721990914449,13.42,178.97,178.95,5.588]
[1721990916346,5.5866,179.0,178.95,5.588]
[1721990916729,13.42,178.97,178.95,5.588]
[1721990917751,13.42,178.96,178.9,13.9741]
[1721990917960,13.42,178.93,178.9,13.9741]
[1721990918165,13.42,178.93,178.91,5.5891]
[1721990921734,13.42,178.93,178.92,5.589]
[1721990921936,13.42,178.94,178.92,5.589]
[1721990923446,13.42,178.94,178.91,5.5892]
[1721990927739,50.5878,178.96,178.92,5.5889]
[1721990927947,13.42,178.95,178.92,13.9721]
[1721990928148,13.42,178.96,178.92,13.9721]
[1721990928439,5.84299137,179.0,178.94,13.9705]
[1721990928757,13.42,178.98,178.94,13.9705]
[1721990929140,13.42,178.97,178.95,5.588]
[1721990929662,13.42,178.96,178.92,5.5889]
[1721990929862,13.42,178.95,178.91,19.5624]
[1721990930061,13.42,178.94,178.91,19.5624]
[1721990930254,13.42,178.94,178.91,13.9731]
[1721990930641,13.42,178.94,178.91,19.5624]
[1721990931072,19.0084,178.94,178.91,13.9731]
[1721990931261,13.42,178.94,178.91,13.9731]
[1721990934264,13.42,178.94,178.92,5.589]
[1721990934768,20.78367516,179.0,178.92,5.589]
[1721990934956,20.78367516,179.0,178.91,13.9731]
[1721990934957,5.5876,178.97,178.93,5.5887]
[1721990935159,5.5876,178.97,178.92,5.5889]
[1721990935160,13.42,178.96,178.92,5.5889]
[1721990935358,5.5876,178.97,178.92,5.5889]
[1721990935560,13.42,178.96,178.93,5.5887]
[1721990935755,13.42,178.96,178.92,5.589]
[1721990936351,19.0079,178.96,178.91,19.5624]
[1721990936554,19.0085,178.94,178.9,5.5896]
[1721990938467,5.5885,178.94,178.9,19.0096]
[1721990939260,19.0081,178.95,178.9,19.0096]
[1721990939464,19.0081,178.95,178.91,5.5893]
[1721990940665,13.42,178.96,178.92,5.589]
[1721990941055,13.42,178.95,178.92,5.589]
[1721990941267,19.0082,178.95,178.91,5.5893]
[1721990943454,19.0085,178.94,178.9,19.5633]
[1721990943655,13.42,178.92,178.88,15.2038]
[1721990943978,13.42,178.92,178.81,14.7916607]
[1721990943979,13.42,178.89,178.81,14.7916607]
[1721990944159,43.6506,178.92,178.81,14.7916607]
[1721990944160,19.0111,178.86,178.82,5.5922]
[1721990944359,5.5913,178.85,178.81,14.7916607]
[1721990944559,13.42,178.86,178.81,20.3840607]
[1721990944560,19.011,178.86,178.81,20.3840607]
[1721990944764,13.42,178.85,178.81,20.3840607]
[1721990945190,13.42,178.84,178.81,14.7916607]
[1721990945357,20.1094,178.9,178.81,0.8106607]
[1721990945358,13.42,178.83,178.81,0.8106607]
[1721990945851,19.0119,178.83,178.81,0.8106607]
[1721990946057,5.5916,178.84,178.81,0.8106607]
[1721990946284,13.42,178.83,178.81,6.4028607]
[1721990946463,13.42,178.83,178.81,0.8106607]
[1721990947193,13.42,178.82,178.81,0.8106607]
[1721990948587,13.42,178.83,178.81,0.8106607]
[1721990948786,13.42,178.85,178.81,0.8106607]
[1721990949163,19.0113,178.85,178.81,6.4031607]
[1721990949576,13.42,178.84,178.81,6.4031607]
[1721990949771,13.42,178.85,178.81,6.4031607]
[1721990949980,13.42,178.84,178.81,0.8106607]
[1721990950400,13.42,178.84,178.81,6.4029607]
[1721990951063,5.5912,178.86,178.81,6.4029607]
[1721990951277,13.42,178.85,178.82,5.5921]
[1721990951702,13.42,178.84,178.81,6.4031607]
[1721990951878,13.42,178.84,178.81,0.8106607]
[1721990952077,19.0115,178.84,178.81,0.8106607]
[1721990952866,13.42,178.83,178.81,0.8106607]
[1721990953162,19.0122,178.82,178.81,0.8106607]
[1721990955276,64.0122,178.82,178.81,0.8106607]
[1721990957283,19.0122,178.82,178.81,0.8106607]
[1721990958167,64.0122,178.82,178.81,0.8106607]
[1721990960502,77.9927,178.82,178.81,0.8106607]
[1721990964173,64.0122,178.82,178.81,0.8106607]
[1721990969401,19.0122,178.82,178.81,0.8106607]
[1721990971398,64.0122,178.82,178.81,0.8106607]
[1721990971781,50.5922,178.82,178.81,0.8106607]
[1721990971984,64.0122,178.82,178.81,0.8106607]
[1721990972485,19.0122,178.82,178.81,0.8106607]
[1721990973207,5.5922,178.82,178.81,0.8106607]
[1721990973506,19.0122,178.82,178.81,0.8106607]
[1721990975102,64.0122,178.82,178.81,0.8106607]
[1721990978487,50.5922,178.82,178.81,0.8106607]
[1721990978694,64.0122,178.82,178.81,0.8106607]
[1721990981205,13.42,178.82,178.81,0.8106607]
[1721990981791,19.0122,178.82,178.81,0.8106607]
[1721990982494,64.0122,178.82,178.81,0.8106607]
[1721990983206,64.0122,178.82,178.81,0.5868907]
[1721990983629,19.0122,178.82,178.81,0.5868907]
[1721990983914,64.0122,178.82,178.81,0.5868907]
[1721990984110,94.0122,178.82,178.81,0.5868907]
[1721990985232,35.5922,178.82,178.81,0.5868907]
[1721990985523,19.0122,178.82,178.81,0.5868907]
[1721990985689,5.5922,178.82,178.81,0.5868907]
[1721990985884,19.0122,178.82,178.81,0.5868907]
[1721990989648,64.0122,178.82,178.81,0.5868907]
[1721990990015,19.0122,178.82,178.81,0.5868907]
[1721990990741,5.5922,178.82,178.81,0.5868907]
[1721990990917,19.0122,178.82,178.81,0.5868907]
[1721990994330,13.42,178.82,178.81,0.5868907]
[1721990994848,19.0122,178.82,178.81,0.5868907]
[1721990997350,64.0122,178.82,178.81,0.5868907]
[1721990999746,72.78295572,178.82,178.81,0.5868907]
[1721991000053,102.78295572,178.82,178.81,0.5868907]
[1721991002052,103.03279261,178.82,178.76,5.0693646]
[1721991002360,103.03279261,178.82,178.75,1.50724218]
[1721991002361,5.594,178.76,178.75,1.50724218]
[1721991002559,77.434,178.76,178.75,1.50724218]
[1721991003263,5.5938,178.77,178.75,1.50724218]
[1721991003442,13.42,178.76,178.75,1.50724218]
[1721991003848,5.5933,178.79,178.75,1.50724218]
[1721991004046,13.42,178.76,178.75,1.50724218]
[1721991008940,19.0138,178.77,178.75,1.50724218]
[1721991009639,13.42,178.79,178.76,5.5938]
[1721991009845,13.42,178.8,178.76,6.71243561]
[1721991010147,5.5925,178.81,178.76,5.5938]
[1721991010148,13.42,178.79,178.76,5.5938]
[1721991010375,13.42,178.79,178.77,5.5937]
[1721991010571,13.42,178.8,178.77,5.5937]
[1721991011664,13.42,178.79,178.76,19.5788]
[1721991012039,13.42,178.79,178.76,13.9848]
[1721991012236,13.42,178.79,178.62,20.74043801]
[1721991012471,13.42,178.78,178.73,13.42]
[1721991012771,13.42,178.79,178.73,13.42]
[1721991013449,13.42,178.79,178.74,1.11862135]
[1721991014339,13.42,178.79,178.73,13.42]
[1721991014544,13.42,178.8,178.75,13.42]
[1721991015279,14.36295572,178.82,178.75,30.0551]
[1721991015463,13.42,178.8,178.75,30.0551]
[1721991017372,5.5925,178.81,178.75,16.6351]
[1721991017582,13.42,178.79,178.75,16.6351]
[1721991018382,19.0132,178.79,178.75,16.6351]
[1721991019481,13.42,178.79,178.75,16.6351]
[1721991020989,13.42,178.8,178.75,30.0551]
[1721991021673,14.36295572,178.82,178.76,13.42]
[1721991021878,13.42,178.82,178.77,13.42]
[1721991022083,5.5919,178.83,178.77,13.42]
[1721991022289,13.42,178.83,178.77,14.53833868]
[1721991022755,13.42,178.83,178.78,13.42]
[1721991022950,8.76919125,178.88,178.76,1.11834615]
[1721991023278,30.482,178.9,178.76,1.11834615]
[1721991023279,13.42,178.9,178.84,13.42]
[1721991023764,13.42,178.89,178.83,13.42]
[1721991024183,13.42,178.87,178.82,13.42]
[1721991024489,13.42,178.86,178.81,13.42]
[1721991025291,1.11855767,178.91,178.8,16.0059]
[1721991025292,13.42,178.85,178.8,16.0059]
[1721991025460,1.11855767,178.91,178.8,16.0059]
[1721991025461,13.42,178.83,178.8,16.0059]
[1721991025781,1.11855767,178.91,178.76,13.42]
[1721991025782,13.42,178.81,178.76,13.42]
[1721991025954,13.42,178.8,178.76,16.3126]
[1721991026480,13.42,178.78,178.76,16.3126]
[1721991028584,13.42,178.78,178.73,13.42]
[1721991028783,5.5922,178.82,178.73,13.42]
[1721991029366,13.42,178.79,178.73,13.42]
[1721991029868,13.42,178.79,178.74,13.42]
[1721991030759,13.42,178.8,178.74,13.42]
[1721991031071,13.42,178.8,178.75,1.1185421]
[1721991031384,13.42,178.8,178.74,13.42]
[1721991031574,13.42,178.8,178.75,13.42]
[1721991033388,13.42,178.81,178.76,14.53853078]
[1721991033569,5.5915,178.85,178.77,14.53848935]
[1721991033888,13.42,178.83,178.78,13.42]
[1721991034090,5.5915,178.85,178.78,13.42]
[1721991034091,13.42,178.84,178.78,13.42]
[1721991034465,13.9746,178.9,178.8,13.42]
[1721991034675,13.42,178.85,178.76,1.11835904]
[1721991034987,13.42,178.85,178.79,13.42]
[1721991035466,13.42,178.84,178.78,13.42]
[1721991037900,13.42,178.83,178.75,46.11823669]
[1721991038074,5.5912,178.85,178.72,16.0209]
[1721991038075,13.42,178.81,178.73,1.11828812]
[1721991038273,13.42,178.81,178.75,13.42]
[1721991039189,13.42,178.82,178.77,13.42]
[1721991039894,13.42,178.83,178.77,13.42]
[1721991040058,13.42,178.83,178.78,1.11838188]
[1721991040481,5.5901,178.89,178.81,13.42]
[1721991040684,19.0103,178.88,178.82,14.53810791]
[1721991040882,13.42,178.85,178.79,15.9863]
[1721991041094,13.42,178.85,178.79,29.4063]
[1721991041462,13.42,178.86,178.81,13.42]
[1721991042464,13.42,178.86,178.8,13.42]
[1721991042982,13.42,178.86,178.81,13.42]
[1721991045382,13.42,178.87,178.81,13.42]
[1721991045580,13.42,178.87,178.8,1.11814654]
[1721991045793,13.42,178.87,178.81,13.42]
[1721991046210,21.9638,178.91,178.8,1.11814654]
[1721991046211,21.9638,178.91,178.83,13.42]
[1721991046365,13.42,178.89,178.83,13.42]
[1721991046789,3.41183946,178.96,178.83,13.42]
[1721991046790,5.5857,179.03,178.88,13.42]
[1721991046969,19.0068,179.0,178.94,13.42]
[1721991047310,13.42,178.99,178.94,13.42]
[1721991048117,13.42,178.95,178.85,1.11737731]
[1721991048313,1.11855767,178.98,178.84,21.6381]
[1721991048314,6.4173,178.97,178.84,21.6381]
[1721991048627,5.5888,178.93,178.84,21.6381]
[1721991048998,6.4173,178.97,178.84,21.6381]
[1721991049427,5.5888,178.93,178.84,21.6381]
[1721991052004,5.0888,178.93,178.84,21.6381]
[1721991052200,5.5884,178.94,178.84,21.6381]
[1721991053225,5.5882,178.95,178.85,1.11786696]
[1721991053517,5.5882,178.95,178.84,22.75591232]
[1721991053832,6.4173,178.97,178.85,45.0]
[1721991054117,6.4173,178.97,178.86,1.1176344]
[1721991054333,15.2756,178.98,178.86,1.1176344]
[1721991056403,5.5866,179.0,178.86,1.1176344]
[1721991057105,5.5869,178.99,178.86,1.1176344]
[1721991058521,35.80308702,179.02,178.87,16.3008]
[1721991058738,5.5862,179.01,178.88,46.11742259]
[1721991059227,5.5866,179.0,178.88,46.11742259]
[1721991059410,5.5869,178.99,178.88,46.11742259]
[1721991059617,5.5873,178.98,178.88,46.11750167]
[1721991060214,5.5873,178.98,178.88,1.11750167]
[1721991060909,5.5869,178.99,178.88,1.11750167]
[1721991061219,5.5865,179.01,178.88,1.11750167]
[1721991061523,5.5865,179.01,178.88,46.11750167]
[1721991061832,8.76308702,179.02,178.9,6.248]
[1721991062133,8.76308702,179.02,178.91,46.11732898]
[1721991062508,8.76308702,179.02,178.92,15.7932]
[1721991062831,5.5853,179.04,178.93,46.11718412]
[1721991063019,14.3450618,179.05,178.93,46.11718412]
[1721991063220,422.883782,179.17,178.93,46.11718412]
[1721991063221,33.5559,179.1,178.93,46.11718412]
[1721991063420,5.5846,179.07,178.93,46.11718412]
[1721991063931,5.585,179.05,178.93,46.11718412]
[1721991064116,1.11855767,179.07,178.93,46.11718412]
[1721991064525,5.5853,179.04,178.93,46.11718412]
[1721991065044,5.585,179.05,178.93,46.11718412]
[1721991065412,5.5854,179.04,178.93,46.11718412]
[1721991067012,5.585,179.06,178.93,46.11718412]
[1721991067216,1.11855767,179.07,178.93,46.11718412]
[1721991067436,5.5849,179.06,178.93,46.11718412]
[1721991068135,5.585,179.05,178.93,46.11718412]
[1721991068439,5.5848,179.06,178.93,46.11718412]
[1721991071529,5.5848,179.06,178.94,6.1393]
[1721991071729,5.5848,179.06,178.95,46.11705217]
[1721991071935,5.5848,179.06,178.96,1.11705374]
[1721991073824,5.5848,179.06,178.95,45.0]
[1721991074344,5.5848,179.06,178.96,1.11701175]
[1721991075045,5.5848,179.06,178.95,45.0]
[1721991075735,5.5848,179.06,178.96,1.1170135]
[1721991076442,5.5848,179.06,178.97,16.3395]
[1721991078329,13.5,179.03,178.97,29.8395]
[1721991078727,13.5,179.03,178.98,13.5]
[1721991080242,13.5,179.03,178.97,29.8395]
[1721991080455,13.5,179.02,178.97,16.3395]
[1721991080820,13.5,178.99,178.97,16.3395]
[1721991081020,13.5,178.98,178.97,16.3395]
[1721991084444,5.5853,179.04,178.97,16.3395]